[Event "Titled Tuesday Blitz July 4 Early 2023"]
[White "Ladan, Nicholas"]
[Black "Sariego Figueredo, Wilfredo"]
[WhiteFideId "30918855"]
[BlackFideId "3500080"]
[WhiteElo "2419"]
[BlackElo "2212"]
[Result "1-0"]
[Round "3"]
[TimeControl "180+2"]
[Date "2023.07.04"]
[WhiteClock "0:01:09"]
[BlackClock "0:00:00"]
[Board "209"]

1. d4 {[%clk 0:02:59]}  d5 {[%clk 0:02:58]} 2. Nf3 {[%clk 0:03:00]}  Nf6 {[%clk 0:02:58]} 3. Bf4 {[%clk 0:02:59]}  e6 {[%clk 0:02:56]} 4. e3 {[%clk 0:03:00]}  Bd6 {[%clk 0:02:57]} 5. Ne5 {[%clk 0:03:00]}  c5 {[%clk 0:02:56]} 6. Bb5+ {[%clk 0:02:59]}  Nbd7 {[%clk 0:02:54]} 7. Nxf7 {[%clk 0:02:58]}  Kxf7 {[%clk 0:02:53]} 8. Bxd6 {[%clk 0:02:58]}  cxd4 {[%clk 0:02:45]} 9. exd4 {[%clk 0:02:50]}  Ne4 {[%clk 0:02:45]} 10. Bxd7 {[%clk 0:02:31]}  Bxd7 {[%clk 0:02:23]} 11. Qf3+ {[%clk 0:02:25]}  Qf6 {[%clk 0:02:14]} 12. Be5 {[%clk 0:02:18]}  Qxf3 {[%clk 0:02:14]} 13. gxf3 {[%clk 0:02:19]}  Nf6 {[%clk 0:02:13]} 14. Nd2 {[%clk 0:02:12]}  Rac8 {[%clk 0:02:11]} 15. c3 {[%clk 0:02:12]}  Rhf8 {[%clk 0:02:06]} 16. Ke2 {[%clk 0:02:09]}  Bb5+ {[%clk 0:01:58]} 17. Ke3 {[%clk 0:02:09]}  Nd7 {[%clk 0:01:54]} 18. f4 {[%clk 0:02:07]}  Kg8 {[%clk 0:01:46]} 19. a4 {[%clk 0:02:05]}  Ba6 {[%clk 0:01:41]} 20. Rhg1 {[%clk 0:02:05]}  g6 {[%clk 0:01:40]} 21. Nf3 {[%clk 0:01:59]}  Rce8 {[%clk 0:01:28]} 22. a5 {[%clk 0:01:58]}  Rf5 {[%clk 0:01:25]} 23. Nh4 {[%clk 0:01:54]}  Rh5 {[%clk 0:01:24]} 24. Rg4 {[%clk 0:01:52]}  Rf8 {[%clk 0:01:21]} 25. Rag1 {[%clk 0:01:49]}  Bc4 {[%clk 0:00:57]} 26. Nf3 {[%clk 0:01:47]}  Rhf5 {[%clk 0:00:47]} 27. R1g3 {[%clk 0:01:37]}  Bb3 {[%clk 0:00:42]} 28. Ng5 {[%clk 0:01:32]}  Nxe5 {[%clk 0:00:26]} 29. dxe5 {[%clk 0:01:31]}  Re8 {[%clk 0:00:26]} 30. h4 {[%clk 0:01:23]}  Bd1 {[%clk 0:00:25]} 31. f3 {[%clk 0:01:22]}  h5 {[%clk 0:00:23]} 32. Nxe6 {[%clk 0:01:15]}  hxg4 {[%clk 0:00:12]} 33. fxg4 {[%clk 0:01:16]}  Bxg4 {[%clk 0:00:06]} 34. Nd4 {[%clk 0:01:14]}  Kf7 {[%clk 0:00:02]} 35. Rxg4 {[%clk 0:01:13]}  Rh5 {[%clk 0:00:00]} 36. Nf3 {[%clk 0:01:09]} 1-0


[Site "https://www.chess.com"]

[Event "Titled Tuesday Blitz July 4 Early 2023"]
[White "Bazilius, Augustinas"]
[Black "Mishra, Manoj"]
[WhiteFideId "12832251"]
[BlackFideId "5006007"]
[WhiteElo "2413"]
[BlackElo "2201"]
[Result "1-0"]
[Round "3"]
[TimeControl "180+2"]
[Date "2023.07.04"]
[WhiteClock "0:00:06"]
[BlackClock "0:00:00"]
[Board "212"]

1. d4 {[%clk 0:03:00]}  Nf6 {[%clk 0:02:58]} 2. c4 {[%clk 0:03:00]}  g6 {[%clk 0:02:49]} 3. Nc3 {[%clk 0:03:00]}  Bg7 {[%clk 0:02:49]} 4. e4 {[%clk 0:03:00]}  d6 {[%clk 0:02:49]} 5. h3 {[%clk 0:03:00]}  O-O {[%clk 0:02:48]} 6. Be3 {[%clk 0:02:59]}  e5 {[%clk 0:02:47]} 7. d5 {[%clk 0:02:59]}  a5 {[%clk 0:02:46]} 8. g4 {[%clk 0:02:55]}  Na6 {[%clk 0:02:43]} 9. Nge2 {[%clk 0:02:55]}  Nc5 {[%clk 0:02:42]} 10. Ng3 {[%clk 0:02:55]}  Ne8 {[%clk 0:02:12]} 11. h4 {[%clk 0:02:37]}  f5 {[%clk 0:02:04]} 12. gxf5 {[%clk 0:02:36]}  gxf5 {[%clk 0:02:05]} 13. Nxf5 {[%clk 0:02:34]}  Bxf5 {[%clk 0:02:00]} 14. exf5 {[%clk 0:02:34]}  Rxf5 {[%clk 0:02:01]} 15. Qg4 {[%clk 0:02:33]}  Qf6 {[%clk 0:01:35]} 16. Rg1 {[%clk 0:02:14]}  h5 {[%clk 0:01:28]} 17. Qg3 {[%clk 0:01:58]}  Rf3 {[%clk 0:01:25]} 18. Qg2 {[%clk 0:01:57]}  Rxe3+ {[%clk 0:01:14]} 19. fxe3 {[%clk 0:01:55]}  Qxh4+ {[%clk 0:01:14]} 20. Kd2 {[%clk 0:01:39]}  Qe7 {[%clk 0:00:49]} 21. Be2 {[%clk 0:01:12]}  Nf6 {[%clk 0:00:49]} 22. Qg6 {[%clk 0:01:02]}  Qf7 {[%clk 0:00:43]} 23. Raf1 {[%clk 0:00:47]}  Qxg6 {[%clk 0:00:41]} 24. Rxg6 {[%clk 0:00:47]}  Rf8 {[%clk 0:00:31]} 25. Rfg1 {[%clk 0:00:47]}  Rf7 {[%clk 0:00:22]} 26. Rh1 {[%clk 0:00:34]}  Kh7 {[%clk 0:00:21]} 27. Rg2 {[%clk 0:00:28]}  Kh6 {[%clk 0:00:20]} 28. Rgh2 {[%clk 0:00:26]}  Nce4+ {[%clk 0:00:15]} 29. Nxe4 {[%clk 0:00:22]}  Nxe4+ {[%clk 0:00:16]} 30. Kc2 {[%clk 0:00:20]}  Ng3 {[%clk 0:00:16]} 31. Bxh5 {[%clk 0:00:13]}  Rf2+ {[%clk 0:00:09]} 32. Rxf2 {[%clk 0:00:13]}  Nxh1 {[%clk 0:00:09]} 33. Rh2 {[%clk 0:00:10]}  Ng3 {[%clk 0:00:09]} 34. Be8+ {[%clk 0:00:09]}  Kg5 {[%clk 0:00:09]} 35. Rh7 {[%clk 0:00:07]}  Kf6 {[%clk 0:00:09]} 36. Rh2 {[%clk 0:00:06]}  Nf5 {[%clk 0:00:07]} 37. Rf2 {[%clk 0:00:05]}  Kg5 {[%clk 0:00:07]} 38. e4 {[%clk 0:00:05]}  Nd4+ {[%clk 0:00:07]} 39. Kd3 {[%clk 0:00:05]}  Bf6 {[%clk 0:00:06]} 40. Rg2+ {[%clk 0:00:05]}  Kf4 {[%clk 0:00:07]} 41. Rh2 {[%clk 0:00:05]}  Nf3 {[%clk 0:00:06]} 42. Rh7 {[%clk 0:00:04]}  Ne1+ {[%clk 0:00:06]} 43. Ke2 {[%clk 0:00:04]}  Nc2 {[%clk 0:00:06]} 44. Rf7 {[%clk 0:00:03]}  Kg5 {[%clk 0:00:07]} 45. Rxc7 {[%clk 0:00:03]}  Nd4+ {[%clk 0:00:07]} 46. Kd3 {[%clk 0:00:04]}  Nf3 {[%clk 0:00:06]} 47. Rxb7 {[%clk 0:00:05]}  Kf4 {[%clk 0:00:06]} 48. Rf7 {[%clk 0:00:05]}  Kg5 {[%clk 0:00:06]} 49. c5 {[%clk 0:00:05]}  dxc5 {[%clk 0:00:04]} 50. d6 {[%clk 0:00:05]}  Nd4 {[%clk 0:00:05]} 51. d7 {[%clk 0:00:05]}  Nc6 {[%clk 0:00:03]} 52. Kc4 {[%clk 0:00:05]}  Nd8 {[%clk 0:00:02]} 53. Rh7 {[%clk 0:00:05]}  Kf4 {[%clk 0:00:01]} 54. Bg6 {[%clk 0:00:05]}  Kg5 {[%clk 0:00:01]} 55. Bf5 {[%clk 0:00:05]}  Kf4 {[%clk 0:00:01]} 56. Kxc5 {[%clk 0:00:05]}  Ke3 {[%clk 0:00:00]} 57. Kb6 {[%clk 0:00:06]} 1-0


[Site "https://www.chess.com"]

[Event "Titled Tuesday Blitz July 4 Early 2023"]
[White "Melikhov, Evgeny V."]
[Black "Suduvasachmatai"]
[WhiteFideId "4122046"]
[WhiteElo "2380"]
[BlackElo "2117"]
[Result "1-0"]
[Round "3"]
[TimeControl "180+2"]
[Date "2023.07.04"]
[WhiteClock "0:00:18"]
[BlackClock "0:00:04"]
[Board "223"]

1. d4 {[%clk 0:03:00]}  d5 {[%clk 0:02:59]} 2. c4 {[%clk 0:03:00]}  Nf6 {[%clk 0:03:00]} 3. Nc3 {[%clk 0:03:00]}  e6 {[%clk 0:03:00]} 4. cxd5 {[%clk 0:03:00]}  exd5 {[%clk 0:03:00]} 5. Bg5 {[%clk 0:03:00]}  c5 {[%clk 0:03:00]} 6. e3 {[%clk 0:02:51]}  Nc6 {[%clk 0:02:58]} 7. dxc5 {[%clk 0:02:49]}  Bxc5 {[%clk 0:02:48]} 8. Bxf6 {[%clk 0:02:43]}  Qxf6 {[%clk 0:02:45]} 9. Qxd5 {[%clk 0:02:42]}  Bb4 {[%clk 0:02:39]} 10. Rc1 {[%clk 0:02:35]}  O-O {[%clk 0:02:34]} 11. a3 {[%clk 0:02:28]}  Be6 {[%clk 0:02:27]} 12. Qf3 {[%clk 0:02:27]}  Bxc3+ {[%clk 0:02:25]} 13. Rxc3 {[%clk 0:02:27]}  Qg6 {[%clk 0:02:25]} 14. Bd3 {[%clk 0:02:26]}  Qg5 {[%clk 0:02:18]} 15. Qe4 {[%clk 0:02:09]}  g6 {[%clk 0:02:13]} 16. Nf3 {[%clk 0:02:02]}  Qd8 {[%clk 0:01:53]} 17. Nd4 {[%clk 0:01:49]}  Bd5 {[%clk 0:01:41]} 18. Qg4 {[%clk 0:01:41]}  Ne5 {[%clk 0:01:34]} 19. Qe2 {[%clk 0:01:36]}  Qb6 {[%clk 0:01:26]} 20. O-O {[%clk 0:01:26]}  Rac8 {[%clk 0:01:18]} 21. Rfc1 {[%clk 0:01:13]}  Rxc3 {[%clk 0:01:10]} 22. bxc3 {[%clk 0:01:12]}  Rc8 {[%clk 0:01:07]} 23. c4 {[%clk 0:01:10]}  Bxc4 {[%clk 0:00:34]} 24. Bxc4 {[%clk 0:01:07]}  Nxc4 {[%clk 0:00:28]} 25. h4 {[%clk 0:00:56]}  Qa6 {[%clk 0:00:27]} 26. h5 {[%clk 0:00:48]}  b5 {[%clk 0:00:25]} 27. h6 {[%clk 0:00:46]}  Nxa3 {[%clk 0:00:20]} 28. Rxc8+ {[%clk 0:00:39]}  Qxc8 {[%clk 0:00:19]} 29. Qb2 {[%clk 0:00:38]}  Nc4 {[%clk 0:00:16]} 30. Qxb5 {[%clk 0:00:36]}  Nd2 {[%clk 0:00:13]} 31. Qe5 {[%clk 0:00:29]}  Qc1+ {[%clk 0:00:11]} 32. Kh2 {[%clk 0:00:29]}  Nf1+ {[%clk 0:00:10]} 33. Kh3 {[%clk 0:00:29]}  Kf8 {[%clk 0:00:10]} 34. Qd6+ {[%clk 0:00:22]}  Ke8 {[%clk 0:00:08]} 35. Nc6 {[%clk 0:00:19]}  Nxe3 {[%clk 0:00:04]} 36. Qe7# {[%clk 0:00:18]} 1-0


[Site "https://www.chess.com"]

[Event "Titled Tuesday Blitz July 4 Early 2023"]
[White "Barbot, Pierre"]
[Black "Jaivardhan Raj"]
[WhiteFideId "663727"]
[BlackFideId "25744437"]
[WhiteElo "2374"]
[BlackElo "2080"]
[Result "0-1"]
[Round "3"]
[TimeControl "180+2"]
[Date "2023.07.04"]
[WhiteClock "0:00:00"]
[BlackClock "0:00:20"]
[Board "225"]

1. d4 {[%clk 0:03:00]}  Nf6 {[%clk 0:02:58]} 2. Nf3 {[%clk 0:03:00]}  e6 {[%clk 0:02:58]} 3. Bf4 {[%clk 0:03:00]}  b6 {[%clk 0:02:57]} 4. e3 {[%clk 0:02:58]}  Bb7 {[%clk 0:02:56]} 5. Nbd2 {[%clk 0:02:58]}  d5 {[%clk 0:02:51]} 6. Bd3 {[%clk 0:02:53]}  Bd6 {[%clk 0:02:47]} 7. c3 {[%clk 0:02:48]}  O-O {[%clk 0:02:42]} 8. O-O {[%clk 0:01:57]}  c5 {[%clk 0:02:35]} 9. Ne5 {[%clk 0:01:49]}  Ba6 {[%clk 0:02:24]} 10. Bxa6 {[%clk 0:01:42]}  Nxa6 {[%clk 0:02:25]} 11. Qe2 {[%clk 0:01:42]}  Nc7 {[%clk 0:02:22]} 12. Bg3 {[%clk 0:01:27]}  cxd4 {[%clk 0:02:10]} 13. exd4 {[%clk 0:01:25]}  Rc8 {[%clk 0:01:55]} 14. Rae1 {[%clk 0:01:06]}  Qe8 {[%clk 0:01:33]} 15. f4 {[%clk 0:00:33]}  Qb5 {[%clk 0:01:24]} 16. Qxb5 {[%clk 0:00:26]}  Nxb5 {[%clk 0:01:23]} 17. f5 {[%clk 0:00:26]}  exf5 {[%clk 0:01:14]} 18. Rxf5 {[%clk 0:00:24]}  Rfe8 {[%clk 0:01:11]} 19. Ref1 {[%clk 0:00:22]}  Re7 {[%clk 0:00:48]} 20. Bh4 {[%clk 0:00:21]}  Rce8 {[%clk 0:00:33]} 21. Bxf6 {[%clk 0:00:20]}  gxf6 {[%clk 0:00:32]} 22. Ng4 {[%clk 0:00:11]}  Kh8 {[%clk 0:00:26]} 23. Rxf6 {[%clk 0:00:11]}  Re2 {[%clk 0:00:25]} 24. R6f2 {[%clk 0:00:04]}  f5 {[%clk 0:00:22]} 25. Ne3 {[%clk 0:00:01]}  R8xe3 {[%clk 0:00:20]} 26. Rxf5 {[%clk 0:00:00]}  Rxd2 {[%clk 0:00:20]} 0-1


[Site "https://www.chess.com"]

[Event "Titled Tuesday Blitz July 4 Early 2023"]
[White "Horokoskii"]
[Black "Fernandez, Michael"]
[BlackFideId "5803560"]
[WhiteElo "2079"]
[BlackElo "2363"]
[Result "0-1"]
[Round "3"]
[TimeControl "180+2"]
[Date "2023.07.04"]
[WhiteClock "0:00:06"]
[BlackClock "0:00:20"]
[Board "226"]

1. d4 {[%clk 0:03:00]}  d5 {[%clk 0:02:58]} 2. c4 {[%clk 0:03:00]}  c6 {[%clk 0:02:57]} 3. Nc3 {[%clk 0:02:59]}  Nf6 {[%clk 0:02:55]} 4. Nf3 {[%clk 0:02:56]}  e6 {[%clk 0:02:55]} 5. e3 {[%clk 0:02:56]}  Nbd7 {[%clk 0:02:54]} 6. Qc2 {[%clk 0:02:54]}  Bd6 {[%clk 0:02:53]} 7. b3 {[%clk 0:02:53]}  O-O {[%clk 0:02:48]} 8. Bb2 {[%clk 0:02:53]}  b6 {[%clk 0:02:45]} 9. Bd3 {[%clk 0:02:50]}  Bb7 {[%clk 0:02:36]} 10. O-O {[%clk 0:02:48]}  Rc8 {[%clk 0:02:33]} 11. Rad1 {[%clk 0:02:36]}  Qe7 {[%clk 0:02:31]} 12. e4 {[%clk 0:02:35]}  dxe4 {[%clk 0:02:18]} 13. Nxe4 {[%clk 0:02:35]}  Nxe4 {[%clk 0:02:19]} 14. Bxe4 {[%clk 0:02:36]}  Nf6 {[%clk 0:02:20]} 15. Bd3 {[%clk 0:02:36]}  c5 {[%clk 0:02:15]} 16. Rfe1 {[%clk 0:02:36]}  Bxf3 {[%clk 0:02:11]} 17. gxf3 {[%clk 0:02:36]}  cxd4 {[%clk 0:02:09]} 18. Bxd4 {[%clk 0:02:34]}  Rfd8 {[%clk 0:02:05]} 19. Kh1 {[%clk 0:01:53]}  Kh8 {[%clk 0:01:58]} 20. Rg1 {[%clk 0:01:52]}  Nh5 {[%clk 0:01:53]} 21. Bxh7 {[%clk 0:01:36]}  Qh4 {[%clk 0:01:52]} 22. Rg2 {[%clk 0:01:34]}  Bb8 {[%clk 0:01:24]} 23. Qe4 {[%clk 0:01:16]}  Qxe4 {[%clk 0:01:17]} 24. Bxe4 {[%clk 0:01:17]}  e5 {[%clk 0:01:15]} 25. Rg5 {[%clk 0:01:12]}  Nf6 {[%clk 0:01:03]} 26. Rdg1 {[%clk 0:01:02]}  Rxd4 {[%clk 0:00:48]} 27. Rxg7 {[%clk 0:01:01]}  Rg8 {[%clk 0:00:42]} 28. Rxf7 {[%clk 0:00:48]}  Nxe4 {[%clk 0:00:42]} 29. fxe4 {[%clk 0:00:44]}  Rxe4 {[%clk 0:00:41]} 30. Rb7 {[%clk 0:00:35]}  Rxg1+ {[%clk 0:00:39]} 31. Kxg1 {[%clk 0:00:36]}  Bd6 {[%clk 0:00:40]} 32. Rxa7 {[%clk 0:00:35]}  Re2 {[%clk 0:00:40]} 33. a3 {[%clk 0:00:25]}  Bc5 {[%clk 0:00:39]} 34. b4 {[%clk 0:00:25]}  Bxf2+ {[%clk 0:00:37]} 35. Kf1 {[%clk 0:00:25]}  Ra2 {[%clk 0:00:37]} 36. Re7 {[%clk 0:00:21]}  Bd4 {[%clk 0:00:37]} 37. Ra7 {[%clk 0:00:19]}  e4 {[%clk 0:00:34]} 38. Re7 {[%clk 0:00:17]}  e3 {[%clk 0:00:34]} 39. Re4 {[%clk 0:00:17]}  Rf2+ {[%clk 0:00:32]} 40. Ke1 {[%clk 0:00:17]}  Bc3+ {[%clk 0:00:32]} 41. Kd1 {[%clk 0:00:18]}  Rd2+ {[%clk 0:00:27]} 42. Kc1 {[%clk 0:00:18]}  e2 {[%clk 0:00:26]} 43. Re3 {[%clk 0:00:09]}  Rd1+ {[%clk 0:00:24]} 44. Kc2 {[%clk 0:00:10]}  e1=Q {[%clk 0:00:25]} 45. Rxe1 {[%clk 0:00:09]}  Rxe1 {[%clk 0:00:26]} 46. Kxc3 {[%clk 0:00:08]}  Kg7 {[%clk 0:00:26]} 47. c5 {[%clk 0:00:08]}  bxc5 {[%clk 0:00:27]} 48. b5 {[%clk 0:00:09]}  Kf6 {[%clk 0:00:22]} 49. Kc4 {[%clk 0:00:09]}  Ke7 {[%clk 0:00:19]} 50. Kxc5 {[%clk 0:00:09]}  Kd7 {[%clk 0:00:20]} 51. h4 {[%clk 0:00:09]}  Rh1 {[%clk 0:00:19]} 52. a4 {[%clk 0:00:09]}  Rxh4 {[%clk 0:00:19]} 53. a5 {[%clk 0:00:09]}  Kc7 {[%clk 0:00:19]} 54. b6+ {[%clk 0:00:06]}  Kb7 {[%clk 0:00:20]} 0-1


[Site "https://www.chess.com"]

[Event "Titled Tuesday Blitz July 4 Early 2023"]
[White "Goswami, Vedant"]
[Black "Aanna12"]
[WhiteFideId "5003725"]
[WhiteElo "2360"]
[BlackElo "2072"]
[Result "1-0"]
[Round "3"]
[TimeControl "180+2"]
[Date "2023.07.04"]
[WhiteClock "0:00:47"]
[BlackClock "0:00:00"]
[Board "227"]

1. b3 {[%clk 0:03:00]}  e5 {[%clk 0:02:58]} 2. c4 {[%clk 0:02:58]}  Nc6 {[%clk 0:02:52]} 3. Bb2 {[%clk 0:02:56]}  g6 {[%clk 0:02:51]} 4. Nf3 {[%clk 0:02:54]}  Bg7 {[%clk 0:02:50]} 5. d4 {[%clk 0:02:49]}  exd4 {[%clk 0:02:44]} 6. e3 {[%clk 0:02:39]}  Nge7 {[%clk 0:02:40]} 7. Be2 {[%clk 0:02:34]}  O-O {[%clk 0:02:34]} 8. Nxd4 {[%clk 0:02:32]}  Nxd4 {[%clk 0:02:26]} 9. Bxd4 {[%clk 0:02:28]}  Nc6 {[%clk 0:01:46]} 10. Bxg7 {[%clk 0:02:25]}  Kxg7 {[%clk 0:01:45]} 11. Nc3 {[%clk 0:02:21]}  d6 {[%clk 0:01:45]} 12. O-O {[%clk 0:02:15]}  Be6 {[%clk 0:01:45]} 13. Qd2 {[%clk 0:02:13]}  Qh4 {[%clk 0:01:37]} 14. Rac1 {[%clk 0:02:07]}  Ne5 {[%clk 0:01:14]} 15. Nd5 {[%clk 0:01:49]}  c6 {[%clk 0:01:02]} 16. Nf4 {[%clk 0:01:47]}  Qe7 {[%clk 0:01:00]} 17. Rfd1 {[%clk 0:01:46]}  Rad8 {[%clk 0:00:59]} 18. Qc3 {[%clk 0:01:46]}  Kg8 {[%clk 0:00:57]} 19. c5 {[%clk 0:01:42]}  Bf5 {[%clk 0:00:41]} 20. cxd6 {[%clk 0:01:30]}  Rxd6 {[%clk 0:00:41]} 21. Rxd6 {[%clk 0:01:28]}  Qxd6 {[%clk 0:00:41]} 22. Rd1 {[%clk 0:01:29]}  Qe7 {[%clk 0:00:38]} 23. Qd4 {[%clk 0:01:24]}  Re8 {[%clk 0:00:26]} 24. Qxa7 {[%clk 0:01:19]}  Bg4 {[%clk 0:00:14]} 25. Bxg4 {[%clk 0:01:10]}  Nxg4 {[%clk 0:00:14]} 26. Qd4 {[%clk 0:01:05]}  Qh4 {[%clk 0:00:13]} 27. Nh3 {[%clk 0:00:59]}  Qh5 {[%clk 0:00:09]} 28. Re1 {[%clk 0:00:52]}  Qf5 {[%clk 0:00:07]} 29. f3 {[%clk 0:00:50]}  Nf6 {[%clk 0:00:04]} 30. e4 {[%clk 0:00:48]}  Qe6 {[%clk 0:00:00]} 31. Rd1 {[%clk 0:00:47]} 1-0


[Site "https://www.chess.com"]

[Event "Titled Tuesday Blitz July 4 Early 2023"]
[White "Labussiere, Yago"]
[Black "Blackwhite017"]
[WhiteFideId "2186969"]
[WhiteElo "2359"]
[BlackElo "2050"]
[Result "1-0"]
[Round "3"]
[TimeControl "180+2"]
[Date "2023.07.04"]
[WhiteClock "0:01:41"]
[BlackClock "0:00:00"]
[Board "228"]

1. d4 {[%clk 0:03:00]}  d5 {[%clk 0:02:58]} 2. c4 {[%clk 0:03:00]}  c6 {[%clk 0:02:58]} 3. Nf3 {[%clk 0:02:59]}  Nf6 {[%clk 0:02:58]} 4. e3 {[%clk 0:02:59]}  g6 {[%clk 0:02:57]} 5. Bd3 {[%clk 0:02:57]}  Bg7 {[%clk 0:02:58]} 6. Kf1 {[%clk 0:02:57]}  O-O {[%clk 0:02:58]} 7. g3 {[%clk 0:02:56]}  Bg4 {[%clk 0:02:58]} 8. h3 {[%clk 0:02:54]}  Bxf3 {[%clk 0:02:56]} 9. Qxf3 {[%clk 0:02:54]}  Nbd7 {[%clk 0:02:55]} 10. cxd5 {[%clk 0:02:54]}  cxd5 {[%clk 0:02:54]} 11. Kg2 {[%clk 0:02:54]}  e5 {[%clk 0:02:53]} 12. Qd1 {[%clk 0:02:51]}  exd4 {[%clk 0:02:44]} 13. exd4 {[%clk 0:02:51]}  Qb6 {[%clk 0:02:41]} 14. Be3 {[%clk 0:02:43]}  Qxb2 {[%clk 0:02:35]} 15. Nd2 {[%clk 0:02:43]}  b6 {[%clk 0:02:25]} 16. a4 {[%clk 0:02:39]}  Qb4 {[%clk 0:02:14]} 17. Qf3 {[%clk 0:02:32]}  Rfe8 {[%clk 0:01:35]} 18. Rhb1 {[%clk 0:02:27]}  Qd6 {[%clk 0:01:28]} 19. g4 {[%clk 0:02:26]}  h5 {[%clk 0:01:13]} 20. g5 {[%clk 0:02:23]}  Ne4 {[%clk 0:01:12]} 21. Bxe4 {[%clk 0:02:20]}  dxe4 {[%clk 0:01:10]} 22. Nxe4 {[%clk 0:02:20]}  Qd5 {[%clk 0:00:56]} 23. Nd2 {[%clk 0:02:20]}  Qxf3+ {[%clk 0:00:39]} 24. Nxf3 {[%clk 0:02:21]}  Rad8 {[%clk 0:00:36]} 25. a5 {[%clk 0:02:20]}  Re6 {[%clk 0:00:16]} 26. Rb5 {[%clk 0:02:17]}  a6 {[%clk 0:00:09]} 27. Rd5 {[%clk 0:02:17]}  b5 {[%clk 0:00:06]} 28. Rc1 {[%clk 0:02:17]}  Ree8 {[%clk 0:00:04]} 29. Rc6 {[%clk 0:02:12]}  Nb8 {[%clk 0:00:04]} 30. Rxd8 {[%clk 0:02:11]}  Rxd8 {[%clk 0:00:05]} 31. Rb6 {[%clk 0:02:11]}  Bf8 {[%clk 0:00:04]} 32. Ne5 {[%clk 0:01:48]}  Bb4 {[%clk 0:00:03]} 33. Rxb8 {[%clk 0:01:48]}  Rxb8 {[%clk 0:00:03]} 34. Nc6 {[%clk 0:01:49]}  Rc8 {[%clk 0:00:01]} 35. Nxb4 {[%clk 0:01:49]}  Rc4 {[%clk 0:00:01]} 36. Nxa6 {[%clk 0:01:49]}  Ra4 {[%clk 0:00:01]} 37. d5 {[%clk 0:01:45]}  Rxa5 {[%clk 0:00:01]} 38. Nc5 {[%clk 0:01:45]}  Ra3 {[%clk 0:00:01]} 39. d6 {[%clk 0:01:45]}  Ra8 {[%clk 0:00:00]} 40. Nb7 {[%clk 0:01:41]} 1-0


[Site "https://www.chess.com"]

[Event "Titled Tuesday Blitz July 4 Early 2023"]
[White "Rabineau, Clement"]
[Black "Politov, Pavel Y."]
[WhiteFideId "628891"]
[BlackFideId "24110515"]
[WhiteElo "2357"]
[BlackElo "2050"]
[Result "1-0"]
[Round "3"]
[TimeControl "180+2"]
[Date "2023.07.04"]
[WhiteClock "0:00:05"]
[BlackClock "0:00:00"]
[Board "229"]

1. e4 {[%clk 0:03:00]}  c5 {[%clk 0:02:59]} 2. c3 {[%clk 0:03:01]}  Nf6 {[%clk 0:02:58]} 3. e5 {[%clk 0:03:01]}  Nd5 {[%clk 0:02:58]} 4. Bc4 {[%clk 0:03:01]}  Nb6 {[%clk 0:02:57]} 5. Bb3 {[%clk 0:03:01]}  c4 {[%clk 0:02:50]} 6. Bc2 {[%clk 0:03:01]}  d5 {[%clk 0:02:50]} 7. exd6 {[%clk 0:03:00]}  Qxd6 {[%clk 0:02:49]} 8. Nf3 {[%clk 0:03:01]}  e6 {[%clk 0:02:48]} 9. b3 {[%clk 0:02:57]}  Be7 {[%clk 0:02:38]} 10. Na3 {[%clk 0:02:54]}  cxb3 {[%clk 0:02:35]} 11. axb3 {[%clk 0:02:54]}  a6 {[%clk 0:02:28]} 12. O-O {[%clk 0:02:53]}  O-O {[%clk 0:02:27]} 13. d4 {[%clk 0:02:43]}  Bd7 {[%clk 0:02:20]} 14. Nc4 {[%clk 0:02:37]}  Qc7 {[%clk 0:02:04]} 15. Qd3 {[%clk 0:02:29]}  g6 {[%clk 0:01:54]} 16. Bh6 {[%clk 0:02:14]}  Rc8 {[%clk 0:01:49]} 17. Bd2 {[%clk 0:01:17]}  Nxc4 {[%clk 0:01:39]} 18. bxc4 {[%clk 0:01:16]}  Qxc4 {[%clk 0:01:33]} 19. Qe3 {[%clk 0:01:05]}  Bf8 {[%clk 0:01:03]} 20. Rfb1 {[%clk 0:01:04]}  b5 {[%clk 0:00:45]} 21. Bd3 {[%clk 0:01:03]}  Qc7 {[%clk 0:00:27]} 22. h4 {[%clk 0:00:44]}  Nc6 {[%clk 0:00:23]} 23. h5 {[%clk 0:00:44]}  Ne7 {[%clk 0:00:20]} 24. Ne5 {[%clk 0:00:37]}  Nd5 {[%clk 0:00:17]} 25. Qf3 {[%clk 0:00:32]}  Be8 {[%clk 0:00:17]} 26. Be4 {[%clk 0:00:27]}  Rab8 {[%clk 0:00:12]} 27. Rb3 {[%clk 0:00:21]}  Bg7 {[%clk 0:00:08]} 28. Ng4 {[%clk 0:00:19]}  f5 {[%clk 0:00:05]} 29. Bxd5 {[%clk 0:00:19]}  exd5 {[%clk 0:00:05]} 30. Nh6+ {[%clk 0:00:16]}  Bxh6 {[%clk 0:00:04]} 31. Bxh6 {[%clk 0:00:17]}  Bf7 {[%clk 0:00:04]} 32. hxg6 {[%clk 0:00:15]}  hxg6 {[%clk 0:00:03]} 33. Rba3 {[%clk 0:00:14]}  Qc4 {[%clk 0:00:03]} 34. Bf4 {[%clk 0:00:12]}  b4 {[%clk 0:00:03]} 35. cxb4 {[%clk 0:00:05]}  Rxb4 {[%clk 0:00:03]} 36. Be5 {[%clk 0:00:04]}  Rb7 {[%clk 0:00:02]} 37. Qh3 {[%clk 0:00:05]}  Qc1+ {[%clk 0:00:00]} 38. Kh2 {[%clk 0:00:05]} 1-0


[Site "https://www.chess.com"]